Cogmind - Beta 15 @@@ ROGUE MODE // 2025.08.11 @ 01:22:22 Player: Naughtyusername Result: Destroyed by S-27 Virus with Autogun Performance ------------- Evolutions (3) 1500 Regions Visited (6) 1200 Robots Destroyed (0) 0 Value Destroyed (10) 10 Prototype IDs (0) 0 Alien Tech Used (0) 0 Bonus (919) 919 TOTAL SCORE: 3629 Bonus ------- Pacifist 834 Follower Combat Kills 85 Cogmind --------- Core Integrity 0/700 Matter 300/300 Energy 100/100 System Corruption 0% Temperature Cool (0) Movement Core (50) Location -7/Factory Parts ------- > --- POWER (1) -------- (None) > --- PROPULSION (5) --- (None) > --- UTILITY (5) ------ Hacking Suite > --- WEAPON (2) ------- (None) > --- INVENTORY (5) ---- (None) Peak State ------------ > --- POWER ------------ (None) > --- PROPULSION ------- Hover Unit Improved Hover Unit > --- UTILITY ---------- Terrain Scan Processor Core Shielding > --- WEAPON ----------- (None) > --- INVENTORY -------- (None) [Rating: 6] Favorites ----------- Power None Propulsion Hover Unit Hover Unit Hover Unit Utility Terrain Scan Processor Processor Terrain Scan Processor Hackware Hacking Suite Protection Core Shielding Weapon None Build | -11 -10 -10 -9 -9 -8 -7 ------- Run | Yrd Mat Min Mat Min Mat Fac Slots Evolved 6 | . . . 2 . 2 2 Power . | . . . . . . . Propulsion 3 | . . . 1 . 1 1 Utility 3 | . . . 1 . 1 1 Weapon . | . . . . . . . Parts Attached 5 | . . . 3 1 . 1 Power . | . . . . . . . Engine . | . . . . . . . Core . | . . . . . . . Reactor . | . . . . . . . Propulsion 2 | . . . 2 . . . Treads . | . . . . . . . Leg . | . . . . . . . Wheel . | . . . . . . . Hover 2 | . . . 2 . . . Flight . | . . . . . . . Utility 3 | . . . 1 1 . 1 Device . | . . . . . . . Storage . | . . . . . . . Processor 1 | . . . 1 . . . Hackware 1 | . . . . . . 1 Protection 1 | . . . . 1 . . Artifact . | . . . . . . . Weapon . | . . . . . . . Energy Gun . | . . . . . . . Energy Cannon . | . . . . . . . Ballistic Gun . | . . . . . . . Ballistic Cannon . | . . . . . . . Launcher . | . . . . . . . Special Weapon . | . . . . . . . Impact Weapon . | . . . . . . . Slashing Weapon . | . . . . . . . Piercing Weapon . | . . . . . . . Special Melee Weapon . | . . . . . . . Unidentified Prototypes . | . . . . . . . Parts Lost 3 | . . . . . 3 . Power . | . . . . . . . Propulsion 2 | . . . . . 2 . Utility 1 | . . . . . 1 . Weapon . | . . . . . . . Highest Loss Streak 2 | . . . . . 2 . To Critical Strikes . | . . . . . . . Average Backups . | 4 . . . . . . Power . | 1 . . . . . . Propulsion . | 3 . . . . . . Utility . | . . . . . . . Weapon . | . . . . . . . Tool/Special . | . . . . . . . Unused Backups . | . . . . . . . Power . | . . . . . . . Propulsion . | . . . . . . . Utility . | . . . . . . . Weapon . | . . . . . . . Tool/Special . | . . . . . . . Average Slot Usage (%) 24 | . . . 16 33 18 5 Hover 15 | . . . 11 22 9 . Processor 6 | . . . 5 9 . . Protection 1 | . . . . 1 9 . Peak Build Rating 6 | . . . 5 6 4 3 Average Rating 3 | . . . 3 4 2 2 On Entrance 2 | 6 . . . 5 4 . Naked Turns 182 | . 40 93 6 . . 43 Heaviest Build 1 | . . . . 1 1 . Greatest Support 13 | 3 3 3 13 13 13 3 Greatest Overweight (x) . | . . . . . . . Average Overweight (x) . | . . . . . . . Largest Inventory Capacity 5 | 5 5 5 5 5 5 5 Average Capacity 5 | 5 5 5 5 5 5 5 Most Carried 4 | 4 . . . . . . Average Carried . | 2 . . . . . . Final Capacity 5 | 5 5 5 5 5 5 5 Final Carried . | . . . . . . . Class Distribution -------------------- 100% | Mutant Dominant Class ---------------- Mutant | -10/Materials Mutant | -10/Mines Mutant | -9/Materials Mutant | -9/Mines Mutant | -8/Materials Mutant | -7/Factory Resources | -11 -10 -10 -9 -9 -8 -7 ----------- Run | Yrd Mat Min Mat Min Mat Fac Matter Collected 225 | 200 . . . 25 . . Remotely . | . . . . . . . Salvage Created . | . . . . . . . Parts . | . . . . . . . Haulers Intercepted . | . . . . . . . Recyclers Shooed . | . . . . . . . Parts Field Recycled . | . . . . . . . Retrieved Matter . | . . . . . . . Parts Self-Destructed . | . . . . . . . Prevented . | . . . . . . . Kills | -11 -10 -10 -9 -9 -8 -7 ------- Run | Yrd Mat Min Mat Min Mat Fac Combat Hostiles Destroyed . | . . . . . . . Classes Destroyed . | . . . . . . . Best Kill Streak . | . . . . . . . Combat Bots Only . | . . . . . . . Max Kills in Single Turn . | . . . . . . . Gunslinging . | . . . . . . . Exploded . | . . . . . . . Melee . | . . . . . . . Uniques/NPCs Destroyed . | . . . . . . . Combat | -11 -10 -10 -9 -9 -8 -7 -------- Run | Yrd Mat Min Mat Min Mat Fac Hostile Shots Fired 141 | . 8 21 3 5 24 80 Missed 58 | . 5 6 2 3 11 31 Hits 83 | . 3 15 1 2 13 49 Projectile 83 | . 3 15 1 2 13 49 AOE 1 | . . . . . . 1 Damage Taken 1233 | . 33 200 17 41 240 702 Core 1117 | . 33 200 15 8 160 701 Absorbed by Shields . | . . . . . . . Redirected to Shielding 35 | . . . . . 35 . Core Remaining (%) 67 | 100 . 6 . 94 70 . Volleys Fired . | . . . . . . . Largest . | . . . . . . . Hottest . | . . . . . . . Shots Fired . | . . . . . . . Gun . | . . . . . . . Cannon . | . . . . . . . Launcher . | . . . . . . . Special . | . . . . . . . Kinetic . | . . . . . . . Thermal . | . . . . . . . Explosive . | . . . . . . . Electromagnetic . | . . . . . . . Robot Hit Streak . | . . . . . . . Robot Miss Streak . | . . . . . . . Penetration Max . | . . . . . . . Secondary Targets . | . . . . . . . Shots Hit Robots . | . . . . . . . Core Hits 3 | . . 1 . 1 . 1 Critical Kills . | . . . . . . . Critical Parts Destroyed . | . . . . . . . Critical Strikes . | . . . . . . . Melee Attacks . | . . . . . . . Impact . | . . . . . . . Slashing . | . . . . . . . Piercing . | . . . . . . . Sneak Attacks . | . . . . . . . Combat Hostiles . | . . . . . . . Follow-up Attacks . | . . . . . . . Damage Inflicted 54 | . . 6 6 29 5 8 Guns . | . . . . . . . Cannons . | . . . . . . . Explosions . | . . . . . . . Melee . | . . . . . . . Ramming 54 | . . 6 6 29 5 8 Kinetic . | . . . . . . . Thermal . | . . . . . . . Explosive . | . . . . . . . Electromagnetic . | . . . . . . . Impact . | . . . . . . . Slashing . | . . . . . . . Piercing . | . . . . . . . Highest Corruption . | . . . . . . . Average Corruption . | . . . . . . . Corruption Purged . | . . . . . . . Corruption Blocked . | . . . . . . . Overload Shots . | . . . . . . . Overflow Damage . | . . . . . . . Projectiles . | . . . . . . . Explosions . | . . . . . . . Melee . | . . . . . . . Knockbacks . | . . . . . . . Impact . | . . . . . . . Kinetic . | . . . . . . . Secondary . | . . . . . . . Self-Inflicted Damage 22 | . . 3 2 12 2 3 Shots . | . . . . . . . Rammed 18 | . . 3 2 9 1 3 Targets Rammed 18 | . . 3 2 9 1 3 Kicked . | . . . . . . . Crushed . | . . . . . . . Highest Temperature 5 | . . . . . 5 . Average Temperature 5 | . . . . . 5 . Received Heat Transfer 206 | . 18 80 9 15 72 12 Siege Activations . | . . . . . . . Martial Activations . | . . . . . . . Shielding Activations . | . . . . . . . Robots Disrupted . | . . . . . . . Combat Hostiles . | . . . . . . . Robots Corrupted . | . . . . . . . Combat Hostiles . | . . . . . . . Parts Fried . | . . . . . . . Impact Corruptions . | . . . . . . . Robots Melted . | . . . . . . . Combat Hostiles . | . . . . . . . Parts Melted . | . . . . . . . Heat Transferred . | . . . . . . . Parts Sabotaged . | . . . . . . . Parts Stolen . | . . . . . . . Parts Stripped . | . . . . . . . Power Chain Reactions . | . . . . . . . Alert | -11 -10 -10 -9 -9 -8 -7 ------- Run | Yrd Mat Min Mat Min Mat Fac Maximum Alert Level . | . . . . . . . Low Security (%) 100 | 100 100 100 100 100 100 100 Level 1 . | . . . . . . . Level 2 . | . . . . . . . Level 3 . | . . . . . . . Level 4 . | . . . . . . . Level 5 . | . . . . . . . High Security . | . . . . . . . Max Security . | . . . . . . . Peak Influence 106 | . . 8 . 106 45 65 Initial 11 | . . . . . 7 11 Average 12 | . . 1 . 14 13 13 Influence Increases 369 | . . 8 . 211 45 105 Destroy 0b10 Robot/C 120 | . . . . 120 . . Destroy Leader 20 | . . . . 20 . . Allied During Kill 11 | . . . . 11 . . Successful Hack 8 | . . 8 . . . . Disable Machine 15 | . . . . 15 . . Partial Spotted 30 | . . . . . 15 15 Lose Combat Pursuer 165 | . . . . 45 30 90 Influence Decreases 304 | . . 8 . 190 41 65 Entered New Map 28 | . . . . . 14 14 Time Decay 226 | . . 8 . 150 17 51 Lost Part 10 | . . . . . 10 . Lost Ally 40 | . . . . 40 . . Squads Dispatched 3 | . 1 . . . 1 1 Investigation 1 | . . . . . . 1 Extermination . | . . . . . . . Reinforcement 2 | . 1 . . . 1 . Assault . | . . . . . . . Garrison . | . . . . . . . Intercept . | . . . . . . . Searches Triggered . | . . . . . . . Construction Impeded . | . . . . . . . Haulers Reinforced . | . . . . . . . Active Scanning Responses . | . . . . . . . Cargo Convoy Interrupts . | . . . . . . . Stealth | -11 -10 -10 -9 -9 -8 -7 --------- Run | Yrd Mat Min Mat Min Mat Fac Distress Signals . | . . . . . . . Communications Jammed . | . . . . . . . Distress Signals . | . . . . . . . Times Spotted 40 | . 4 11 2 3 9 11 Peak Tracking Total 17 | . 3 17 1 3 9 6 Tactical Retreats 5 | . . 1 . 1 1 2 Traps | -11 -10 -10 -9 -9 -8 -7 ------- Run | Yrd Mat Min Mat Min Mat Fac Traps Triggered 1 | . 1 . . . . . Indirectly . | . . . . . . . Trap Hack Attempts . | . . . . . . . Triggered . | . . . . . . . Disarmed . | . . . . . . . Reprogrammed . | . . . . . . . Reused . | . . . . . . . Traps Extracted . | . . . . . . . Installed . | . . . . . . . Triggered . | . . . . . . . Machines | -11 -10 -10 -9 -9 -8 -7 ---------- Run | Yrd Mat Min Mat Min Mat Fac Machines Disabled 1 | . . . . 1 . . Max in Single Turn . | . . . . . . . Machines Repaired . | . . . . . . . Machines Dismantled . | . . . . . . . Machines Sabotaged . | . . . . . . . Overloaded Fab Kills . | . . . . . . . Hacking | -11 -10 -10 -9 -9 -8 -7 --------- Run | Yrd Mat Min Mat Min Mat Fac Machines Accessed 2 | . . 1 . . . 1 Terminals 2 | . . 1 . . . 1 Fabricators . | . . . . . . . Repair Stations . | . . . . . . . Recycling Units . | . . . . . . . Scanalyzers . | . . . . . . . Garrison Access . | . . . . . . . Total Hacks 8 | . . 4 . . . 4 Successful 3 | . . 2 . . . 1 Failed 5 | . . 2 . . . 3 Catastrophic 1 | . . . . . . 1 Database Lockouts . | . . . . . . . Manual 7 | . . 3 . . . 4 Terminals 8 | . . 4 . . . 4 Fabricators . | . . . . . . . Repair Stations . | . . . . . . . Recycling Units . | . . . . . . . Scanalyzers . | . . . . . . . Garrison Access . | . . . . . . . Terminal Hacks 1 | . . 1 . . . . Level Access Points 1 | . . 1 . . . . Fabricator Hacks . | . . . . . . . Repair Station Hacks . | . . . . . . . Recycling Unit Hacks . | . . . . . . . Scanalyzer . | . . . . . . . Garrison Access Hacks . | . . . . . . . Unauthorized Hacks 2 | . . 1 . . . 1 Terminals 2 | . . 1 . . . 1 Botnet 2 | . . 1 . . . 1 Fabricators . | . . . . . . . Repair Stations . | . . . . . . . Recycling Units . | . . . . . . . Scanalyzers . | . . . . . . . Garrison Access . | . . . . . . . Data Cores Recovered . | . . . . . . . Used . | . . . . . . . Hacking Detections 2 | . . 1 . . . 1 Full Trace Events 1 | . . . . . . 1 Feedback Events . | . . . . . . . Feedback Blocked . | . . . . . . . Robot Schematics Acquired . | . . . . . . . Robots Built . | . . . . . . . Authchips . | . . . . . . . Time . | . . . . . . . Total Robot Build Rating . | . . . . . . . Part Schematics Acquired . | . . . . . . . Parts Built . | . . . . . . . Authchips . | . . . . . . . Time . | . . . . . . . Total Part Build Rating . | . . . . . . . Parts Repaired . | . . . . . . . Time . | . . . . . . . Parts Recycled . | . . . . . . . Recycled Matter . | . . . . . . . Retrieved Matter . | . . . . . . . Retrieved Components . | . . . . . . . Parts Scanalyzed . | . . . . . . . Part Schematics Acquired . | . . . . . . . Parts Damaged . | . . . . . . . Bothacking | -11 -10 -10 -9 -9 -8 -7 ------------ Run | Yrd Mat Min Mat Min Mat Fac Used RIF Installer . | . . . . . . . Robots Hacked . | . . . . . . . Non-combat . | . . . . . . . Combat . | . . . . . . . Robot Hacks Applied . | . . . . . . . Relay Couplers Released . | . . . . . . . Fabnet Peak Effective % . | . . . . . . . Robots Rewired . | . . . . . . . Allies Hacked . | . . . . . . . Hacks Repelled . | . . . . . . . Allies | -11 -10 -10 -9 -9 -8 -7 -------- Run | Yrd Mat Min Mat Min Mat Fac Total Allies 3 | . . . . 3 . . Largest Group 3 | . . . . 3 . . Highest-Rated Group 40 | . . . . 40 . . Highest-Rated Ally 16 | . . . . 16 . . Total Orders . | . . . . . . . Ally Attacks 31 | . . . . 31 . . Total Damage 326 | . . . . 326 . . Kills 6 | . . . . 6 . . Allies Corrupted . | . . . . . . . Allies Melted . | . . . . . . . Intel | -11 -10 -10 -9 -9 -8 -7 ------- Run | Yrd Mat Min Mat Min Mat Fac Active Infowar (turns) . | . . . . . . . Robot Analysis Total . | . . . . . . . Derelict Logs Recovered 2 | . . . . 2 . . Drone Launches . | . . . . . . . Drone Recoveries . | . . . . . . . Exploration | -11 -10 -10 -9 -9 -8 -7 ------------- Run | Yrd Mat Min Mat Min Mat Fac Turns Passed 1493 | 3 40 93 51 1021 67 218 Spaces Moved 1444 | 1 80 171 73 567 124 428 Core 782 | 1 80 171 34 . 68 428 Treads . | . . . . . . . Legs . | . . . . . . . Wheels . | . . . . . . . Hover 662 | . . . 39 567 56 . Flight . | . . . . . . . Fastest Speed 50 | 50 50 50 50 56 50 50 Average Speed 52 | 50 50 50 53 56 53 50 Slowest Speed 60 | 50 50 50 60 56 60 50 Overloaded Moves . | . . . . . . . Propulsion Burnouts . | . . . . . . . Robots Hopped . | . . . . . . . Potential Cave-ins . | . . . . . . . Cave-ins Triggered . | . . . . . . . Exploration Rate (%) 32 | 2 39 39 7 102 26 14 Regions Visited 6 Branch Regions 2 Pre-discovered Areas 1 | . . . . 1 . . Known Exits Taken 1 | . . 1 . . . . Unknown Exits Taken 5 | 1 1 . 1 1 1 . Scrap Searched 3 | . . . . 3 . . Spaces Dug . | . . . . . . . Terrain Destroyed . | . . . . . . . Melee . | . . . . . . . Projectile . | . . . . . . . AOE . | . . . . . . . Terrain Rammed . | . . . . . . . Walls Destroyed . | . . . . . . . Machines Disabled . | . . . . . . . Actions | -11 -10 -10 -9 -9 -8 -7 --------- Run | Yrd Mat Min Mat Min Mat Fac Total 2169 | 5 79 177 82 1270 124 432 Wait 702 | . . 4 5 693 . . Move 1439 | . 79 170 72 566 124 428 Hop . | . . . . . . . Pick Up . | . . . . . . . Fast Attach 5 | . . . 3 1 . 1 Attach . | . . . . . . . Detach 1 | . . . . 1 . . Swap . | . . . . . . . Drop 5 | 5 . . . . . . Fire . | . . . . . . . Melee . | . . . . . . . Ram 17 | . . 3 2 9 . 3 Kick . | . . . . . . . Crush . | . . . . . . . Escape Stasis . | . . . . . . . Rewire . | . . . . . . . Trap . | . . . . . . . Miscellaneous . | . . . . . . . Route ------- -11/Scrapyard -10/Materials -10/Mines (discovered 2 exits: *Mat x2) -9/Materials -9/Mines (discovered 2 exits: [*Mat x2]) -8/Materials -7/Factory (discovered 2 exits: [*Fac] / Low) History --------- Turn | Location | Event 1 | -11/Scrapyard | Released all parts (6) 4 | -11/Scrapyard | Discovered new exit (range 0) 4 | -11/Scrapyard | Entered Materials 37 | -10/Materials | Discovered new exit (range 16) 44 | -10/Materials | Entered Mines 64 | -10/Mines | Identified exit to Materials 91 | -10/Mines | Assembled infested the area 96 | -10/Mines | Assisted by a Guerilla fighting off Assembled 123 | -10/Mines | Core integrity fell below 50% 126 | -10/Mines | Core integrity fell below 20% 137 | -10/Mines | Entered Materials 137 | -9/Materials | Evolved 2 slots: Propulsion x1, Utility x1 137 | -9/Materials | Discovered new exit (range 15) 188 | -9/Materials | Entered Mines 210 | -9/Mines | Met a Derelict bent on vengeance 219 | -9/Mines | Assisted by bots powering up and referring to "LRC-V3" 316 | -9/Mines | Build established: Mutant 1055 | -9/Mines | Discovered new exit (range 9) 1076 | -9/Mines | Discovered new exit (range 12) 1209 | -9/Mines | Entered Materials 1209 | -8/Materials | Evolved 2 slots: Propulsion x1, Utility x1 1274 | -8/Materials | Discovered new exit (range 4) 1276 | -8/Materials | Entered Factory 1276 | -7/Factory | Evolved 2 slots: Propulsion x1, Utility x1 1277 | -7/Factory | Identified exit to Lower Caves 1398 | -7/Factory | Discovered new exit (range 16) 1461 | -7/Factory | Core integrity fell below 50% 1487 | -7/Factory | Core integrity fell below 20% 1494 | -7/Factory | Destroyed by S-27 Virus with Autogun Last Messages --------------- GOAL=ESCAPE Loading 1 Lower Caves entrance... 01298_ Connecting with Terminal... 01298_ Current location identified: Factory >>Trojan(Botnet) Trojan loaded successfully. Testing... Terminal linked with 0 systems. Awaiting botnet instructions. 01298_ ALERT: Suspicious activity at Terminal F001. Dispatching Investigation squad. 01319_ Acquired Hacking Suite. 01398_ EXIT=FOUND 01408_ K-01 Serf collects debris. 01426_ ALERT: All DSF locations entering lockdown mode. 01489_ Slug penetrates Wall. 01492_ Neutrino Reactor explodes. 01492_ Door malfunctions. 01492_ Slammed into S-27 Virus. Map ----- +----------------------------------------------------+ | ?????????????????????????????????????????????????? | | ?????????????????????????????????????????????????? | | ?????????????????????????????????????????????????? | | ?????????????????????????????????????????????????? | | ?????????????????????????????????????????????????? | | ?????????????????????????????????????????????????? | | ?????????????????????????????????????????????????? | | ?????????????????????????????????????????????????? | | ?????????????????????????????????????????????????? | | ?????????????????????????????????????????????????? | | ?????????????????????????????????????????????????? | | ?????????????????????????????????????????????????? | | ?????????????????????????????????????????????????? | | ?????????????????????????????????????????????????? | | ?????????????????????????????????????????????????? | | ?????????????????????????????????????????????????? | | ?????????????????????????????????????????????????? | | ????????????????##############???????????????????? | | ????????????????# #???????????????????? | | ????????????????# """ #???????????????????? | | ????????????????# """ #???????????????????? | | ????????????????# """ #???????????????????? | | ????????????????# #???????????????????? | | ????????????????#######/######????######?????????? | | ?????????????????????# ss######## # ?????????? | | ?????????????????????# ss@ + [ "?????????? | | ?????????????????????# h########## "?????????? | | ?????????????????????# #????????? """???????? | | ?????????????????????# #????????? ! ??????#? | | ?????????????????????# #?????????? ""?????### | | ?????????????????????# #?????????? ""?????# | | ?????????????????????# #??????????? "??????# | | ?????????????????????# #??????????? ??????# | | ?????????????????????# #############+##?????# | | ?????????????????????# #?????# | | ?????????????????????+ #?#######+ | | ?????????????????????# #?# ! | | ?????????????????????## ############# #?# "T" | | ??????????????????????# ????######?## ### | | ??????????????????????# ????# # ## | | ??????????????????????# ????# """ # ##/##/### | | ??????????????????????# ????# Y" + " | | ??????????????????????# ????# """ # ######### | | ??????????????????????# ????# # #???????? | | ??????????????????????# ????# ?### ###???????? | | ??????????????????????#?????######???# #?????????? | | ?????????????????????????????????????# #?????????? | | ????????????????????????????????????? #?????????? | | ????????????????????????????????????? #?????????? | | ????????????????????????????????????? #?????????? | +----------------------------------------------------+ Best States ------------- Heat Dissipation 34 Energy Generation 5 Energy Capacity 100 Matter Stores 300 Matter Capacity 300 Sight Range 16 Terrain Scan Density 85 Core Shielding 20 Evasion (%) 53 Offensive Hacking 10 Item Schematics ----------------- None Robot Schematics ------------------ None Fabricated ------------ Nothing Repaired ---------- Nothing Alien Tech Used ----------------- None Achievements -------------- None Challenges ------------ None Game ------ Seed RecyclingDynamicSheargun Manual? 0 Play Time 00:09:33 Cumulative 75.5 hours Start 2025.08.11 @ 01:13:38 End 2025.08.11 @ 01:22:22 Sessions 1 Manual Loads 0 Difficulty Rogue Special Mode None Game No. 25 Rogue 25 Adventurer 0 Explorer 0 Win Type - Total 1 Types 0/0/1/0/0/0/0/0/0/0 Lore% 56 Gallery% 52 Achievement% 75 Wizard Run 0 Options --------- Layout 2 ASCII 0 Keyboard 1 Movement Vi Keybinds 0 Fullscreen 1 Font 28/SwanstonBold Map View 50x52 Zoom Use 0% Tactical HUD 1 Map Filters NONE Filters NONE Steam 1 RUN: 40343f66-efbf-45eb-a1b3-f8ef6b4da1eb